[Event "98th Caplin Hastings Masters 2024-25"]
[Site "Hastings"]
[Date "2025.01.03"]
[Round "9.15"]
[White "Bozinakis, Pavlos"]
[Black "Adams, Henry"]
[Result "1-0"]
[ECO "C84"]
[WhiteElo "2271"]
[BlackElo "1991"]
[Annotator "TA"]
[PlyCount "77"]
[EventDate "2024.12.23"]
[EventType "swiss"]
[EventCountry "ENG"]
[SourceTitle "playchess.com"]
[Source "ChessBase"]
[SourceQuality "1"]
[TimeControl "5400+30"]

{[%evp 15,77,18,16,10,29,26,23,21,15,15,30,12,38,39,48,56,120,103,116,55,58,47,62,8,41,49,60,63,83,89,93,76,84,76,143,153,140,131,136,96,112,70,66,56,124,124,469,469,413,239,220,215,603,264,258,203,439,443,561,575,1110,1096,1849,1777]} 1. e4 {[%emt 0:00:07]} e5 {[%emt 0:00:05]} 2. Nf3 {[%emt 0:00:05]} Nc6 {[%emt 0:00:03]} 3. Bb5 {[%emt 0:00:08]} a6 {[%emt 0:00:04]} 4. Ba4 {[%emt 0:00:11]} Nf6 {[%emt 0:00:24]} 5. O-O {[%emt 0:00:13]} Be7 {[%emt 0:00:04]} 6. d3 {[%emt 0:00:35]} b5 {[%emt 0:00:47]} 7. Bb3 {[%emt 0:00:08]} d6 {[%emt 0:01:06]} 8. c3 {[%emt 0:00:22]} O-O {[%emt 0:00:31]} 9. a4 {[%emt 0:00:27][%cal Ba2a4,Ba4a5][%mdl 32]} Bd7 {[%emt 0:02:45]} 10. Bc2 {[%emt 0:00:47]} b4 {[%emt 0:03:58]} 11. a5 {[%emt 0:08:40] White has an edge.} Rb8 {[%emt 0:02:31]} 12. Nbd2 {[%emt 0:00:09]} d5 {[%emt 0:07:12]} 13. Re1 {[%emt 0:10:38]} dxe4 {[%emt 0:04:23]} 14. dxe4 {[%emt 0:00:26]} Rb5 {[%emt 0:10:11]} 15. Qe2 {[%emt 0:08:42]} Rxa5 {[%emt 0:11:56]} ({Black should play} 15... Be6 $14) 16. Rxa5 $16 {[%emt 0:00:30]} Nxa5 {[%emt 0:00:01]} 17. Qxa6 {[%emt 0:03:06]} (17. Nxe5 $16 bxc3 18. Nxd7 (18. bxc3 Bb5 $16) 18... cxd2 19. Qxd2 (19. Nxf8 dxe1=B 20. Qxe1 Nc6 $17) (19. Bxd2 Nxd7 20. Bxa5 Qb8 $16) 19... Qxd7 20. Qxa5) 17... Nc6 $14 {[%emt 0:00:31]} 18. Nc4 {[%emt 0:03:04]} Bd6 {[%emt 0:03:25]} 19. h3 {[%emt 0:06:43] White has more active pieces.} (19. Rd1 $14) 19... Qe7 {[%emt 0:06:22]} 20. Nxd6 {[%emt 0:10:03]} Qxd6 {[%emt 0:03:34]} 21. Rd1 {[%emt 0:02:02]} Qe7 {[%emt 0:04:47]} 22. Bg5 {[%emt 0:03:28]} bxc3 {[%emt 0:03:27]} 23. bxc3 {[%emt 0:00:28]} Qc5 {[%emt 0:01:34]} 24. Bxf6 {[%emt 0:02:54]} Nb8 {[%emt 0:03:59]} (24... Bc8 $142 25. Qd3 (25. Rd5 $2 Qxd5 26. exd5 Bxa6 $19) 25... gxf6) 25. Qd3 $16 {[%emt 0:01:46]} gxf6 {[%emt 0:00:26]} 26. Nh4 {[%emt 0:02:10]} Be6 {[%emt 0:04:59]} 27. Qf3 {[%emt 0:00:15]} Qe7 {[%emt 0:02:00]} 28. Rd3 {[%emt 0:01:06][%cal Oc2b3,Bd1d3,Bd3e3,Be3g3][%mdl 32]} Rd8 {[%emt 0:01:22]} 29. Re3 {[%emt 0:01:22]} Rd6 {[%emt 0:01:33]} (29... Nd7 $14) 30. Qh5 {[%emt 0:01:37]} Nd7 $2 {[%emt 0:03:04][%mdl 8192] Black cannot hold the game after this.} (30... Qf8 $16 {is more resistant.} 31. Rg3+ Kh8) 31. Rg3+ $18 {[%emt 0:01:30]} Kh8 {[%emt 0:00:15]} 32. Bd1 {[%emt 0:01:34]} (32. Bb3 $142 {Black must now prevent Bxe6.} f5 (32... Bxb3 33. Qh6 Qf8 34. Nf5 Be6 35. Ne7) 33. Bxe6 (33. Nxf5 Bxf5 34. exf5 Rf6 $18) 33... Rxe6 34. Nxf5 (34. exf5 Rd6 $18)) 32... f5 {[%emt 0:04:07]} 33. exf5 {[%emt 0:02:51][%cal Od1c2] [#] Threatens to win with Bc2!} Bc4 $2 {[%emt 0:03:02]} (33... Bd5 34. Ba4 Nc5) 34. Bc2 {[%emt 0:01:23]} (34. Ba4 $142) 34... Qf8 {[%emt 0:03:03]} 35. f6 $40 {[%emt 0:02:28][%mdl 128] White attacks with force.} Nxf6 {[%emt 0:00:35]} (35... e4 36. Nf5 (36. Bxe4 Nxf6 37. Qf5 Re6 $18) 36... Nxf6) 36. Qxe5 {[%emt 0:00:38] White is clearly winning.} Bd5 {[%emt 0:03:41] [#]} 37. c4 $1 {[%emt 0:04:24][%mdl 512]} Be4 {[%emt 0:02:42]} (37... Bxc4 38. Nf5) 38. Bxe4 {[%emt 0:00:39]} Re6 {[%emt 0:00:01]} 39. Qc3 {[%emt 0:01:52] Weighted Error Value: White=0.29 (precise) /Black=0.65.  Loses game:     	---       	Black=1      Mistake:       	White=4     	Black=5      Inaccurate:     	White=1     	Black=4      OK:         	White=15    	Black=8      Best:        	White=1     	Black=3} 1-0

[Event "98th Caplin Hastings Masters 2024-25"]
[Site "Hastings"]
[Date "2025.01.03"]
[Round "9.16"]
[White "Verbytski, Oleg"]
[Black "Li, Jack"]
[Result "1-0"]
[ECO "B43"]
[WhiteElo "2033"]
[BlackElo "1717"]
[Annotator "NA RC"]
[PlyCount "77"]
[EventDate "2024.12.23"]
[EventType "swiss"]
[EventCountry "ENG"]
[SourceTitle "playchess.com"]
[Source "ChessBase"]
[SourceQuality "1"]
[TimeControl "5400+30"]

1. e4 {[%emt 0:00:02]} c5 {[%emt 0:00:08]} 2. Nf3 {[%emt 0:00:04]} e6 {[%emt 0:00:04]} 3. d4 {[%emt 0:00:03]} cxd4 {[%emt 0:00:04]} 4. Nxd4 {[%emt 0:00:04]} a6 {[%emt 0:00:05]} 5. Nc3 {[%emt 0:00:23]} b5 {[%emt 0:00:04]} 6. Be3 {[%emt 0:00:30]} Bb7 {[%emt 0:03:40]} 7. f3 {[%emt 0:00:38]} Nc6 {[%emt 0:11:22]} 8. Qd2 {[%emt 0:04:11]} Ne5 {[%emt 0:04:41]} 9. g4 {[%emt 0:09:44]} Rc8 {[%emt 0:05:37]} 10. Bf4 {[%emt 0:06:32]} d6 {[%emt 0:08:31]} 11. O-O-O {[%emt 0:02:52]} Be7 {[%emt 0:01:04]} 12. Kb1 {[%emt 0:01:51]} Nf6 {[%emt 0:03:00]} 13. Be2 {[%emt 0:07:30]} O-O {[%emt 0:05:10]} 14. h4 {[%emt 0:03:02]} Nexg4 {[%emt 0:13:53]} 15. fxg4 {[%emt 0:10:25]} b4 {[%emt 0:00:33]} 16. Na4 {[%emt 0:02:31]} Qa5 {[%emt 0:08:47]} 17. b3 {[%emt 0:01:51]} Bxe4 {[%emt 0:07:32]} 18. Bf3 {[%emt 0:04:26]} e5 {[%emt 0:07:08]} 19. Bxe4 {[%emt 0:02:46]} Nxe4 {[%emt 0:03:45]} 20. Qe1 {[%emt 0:02:20]} Nc3+ {[%emt 0:02:41]} 21. Nxc3 {[%emt 0:00:10]} bxc3 {[%emt 0:02:43]} 22. Nf5 {[%emt 0:02:00]} Rfe8 {[%emt 0:02:16]} 23. Bc1 {[%emt 0:01:04]} Qc7 {[%emt 0:00:47]} 24. Ba3 {[%emt 0:03:42]} Rcd8 {[%emt 0:01:47]} 25. Rh3 {[%emt 0:01:38]} Bf8 {[%emt 0:01:12]} 26. Rxc3 {[%emt 0:01:58]} Qa5 {[%emt 0:00:23]} 27. Bxd6 {[%emt 0:04:03]} g6 {[%emt 0:02:52]} 28. b4 {[%emt 0:01:21]} Qa4 {[%emt 0:00:02]} 29. Bxf8 {[%emt 0:00:44]} Kxf8 {[%emt 0:00:01]} 30. Rxd8 {[%emt 0:04:10]} Qxb4+ {[%emt 0:00:27]} 31. Kc1 {[%emt 0:00:08]} Rxd8 {[%emt 0:00:25]} 32. Qxe5 {[%emt 0:00:27]} gxf5 {[%emt 0:02:56]} 33. Qh8+ {[%emt 0:00:13]} Ke7 {[%emt 0:00:04]} 34. Re3+ {[%emt 0:00:04]} Kd7 {[%emt 0:00:25]} 35. Rd3+ {[%emt 0:00:10]} Kc6 {[%emt 0:00:05]} 36. Qxd8 {[%emt 0:00:15]} Qf4+ {[%emt 0:01:07]} 37. Kb2 {[%emt 0:00:11]} fxg4 {[%emt 0:01:16]} 38. Qc8+ {[%emt 0:00:30]} Kb6 {[%emt 0:00:53]} 39. Rb3+ {[%emt 0:00:10]} 1-0

[Event "98th Caplin Hastings Masters 2024-25"]
[Site "Hastings"]
[Date "2025.01.03"]
[Round "9.17"]
[White "Golding, James"]
[Black "Bilandzic, Ante"]
[Result "1-0"]
[ECO "A52"]
[WhiteElo "2203"]
[BlackElo "1912"]
[Annotator "RC"]
[PlyCount "43"]
[EventDate "2024.12.23"]
[EventType "swiss"]
[EventCountry "ENG"]
[SourceTitle "playchess.com"]
[Source "ChessBase"]
[SourceQuality "1"]
[TimeControl "5400+30"]

1. d4 {[%emt 0:00:03]} Nf6 {[%emt 0:00:05]} 2. c4 {[%emt 0:00:04]} e5 {[%emt 0:00:04]} 3. dxe5 {[%emt 0:00:33]} Ng4 {[%emt 0:00:03]} 4. Nf3 {[%emt 0:00:06]} Bc5 {[%emt 0:00:03]} 5. e3 {[%emt 0:00:06]} Nc6 {[%emt 0:00:04]} 6. Be2 {[%emt 0:00:12]} O-O {[%emt 0:00:04]} 7. O-O {[%emt 0:00:07]} Re8 {[%emt 0:00:03]} 8. b3 {[%emt 0:00:15]} Ngxe5 {[%emt 0:01:37]} 9. Bb2 {[%emt 0:02:02]} Nxf3+ {[%emt 0:00:48]} 10. gxf3 {[%emt 0:02:52]} d5 {[%emt 0:06:01]} 11. Qxd5 {[%emt 0:01:49]} Qh4 {[%emt 0:00:21]} 12. Kh1 {[%emt 0:01:35]} Bd6 {[%emt 0:11:55]} 13. f4 {[%emt 0:00:22]} Bh3 {[%emt 0:01:21]} 14. Rg1 {[%emt 0:01:00]} g6 {[%emt 0:00:01]} 15. Qf3 {[%emt 0:04:42]} Nb4 {[%emt 0:12:17]} 16. Nc3 {[%emt 0:02:45]} Nc2 {[%emt 0:00:56]} 17. Rad1 {[%emt 0:03:55]} Rad8 {[%emt 0:08:04]} 18. Nd5 {[%emt 0:07:35]} Re6 {[%emt 0:10:18]} 19. Qg3 {[%emt 0:09:28]} Be7 {[%emt 0:04:00]} 20. Nxe7+ {[%emt 0:01:19]} Qxe7 {[%emt 0:00:06]} 21. Qxh3 {[%emt 0:00:19]} Nxe3 {[%emt 0:01:04]} 22. fxe3 {[%emt 0:00:59]} 1-0

[Event "98th Caplin Hastings Masters 2024-25"]
[Site "Hastings"]
[Date "2025.01.03"]
[Round "9.18"]
[White "Rida, Ruqayyah"]
[Black "Chandler, Cliff R"]
[Result "1-0"]
[ECO "B01"]
[WhiteElo "2019"]
[BlackElo "2161"]
[Annotator "RC"]
[PlyCount "61"]
[EventDate "2024.12.23"]
[EventType "swiss"]
[EventCountry "ENG"]
[SourceTitle "playchess.com"]
[Source "ChessBase"]
[SourceQuality "1"]
[TimeControl "5400+30"]

1. e4 {[%emt 0:00:02]} d5 {[%emt 0:00:14]} 2. exd5 {[%emt 0:00:07]} Nf6 {[%emt 0:00:06]} 3. d4 {[%emt 0:00:12]} Bg4 {[%emt 0:00:16]} 4. Bb5+ {[%emt 0:00:33]} Nbd7 {[%emt 0:00:37]} 5. Be2 {[%emt 0:00:14]} Bxe2 {[%emt 0:01:57]} 6. Qxe2 {[%emt 0:00:16]} Nxd5 {[%emt 0:00:34]} 7. c4 {[%emt 0:00:23]} N5f6 {[%emt 0:00:53]} 8. Nf3 {[%emt 0:00:25]} e6 {[%emt 0:13:50]} 9. Nc3 {[%emt 0:00:32]} Bb4 {[%emt 0:00:30]} 10. Bd2 {[%emt 0:03:36]} O-O {[%emt 0:01:17]} 11. O-O {[%emt 0:01:37]} c5 {[%emt 0:00:35]} 12. a3 {[%emt 0:04:09]} Bxc3 {[%emt 0:04:39]} 13. Bxc3 {[%emt 0:00:19]} Rc8 {[%emt 0:00:39]} 14. Rad1 {[%emt 0:03:44]} cxd4 {[%emt 0:00:48]} 15. Rxd4 {[%emt 0:06:17]} Qc7 {[%emt 0:03:17]} 16. Rfd1 {[%emt 0:03:51]} Rfe8 {[%emt 0:10:21]} 17. Qe3 {[%emt 0:10:36]} e5 {[%emt 0:07:12]} 18. Rd6 {[%emt 0:01:35]} e4 {[%emt 0:03:46]} 19. Nh4 {[%emt 0:04:26]} Ne5 {[%emt 0:04:27]} 20. Nf5 {[%emt 0:08:04]} h6 {[%emt 0:08:15]} 21. Qg3 {[%emt 0:07:19]} Ng6 {[%emt 0:02:09]} 22. Bxf6 {[%emt 0:03:41]} gxf6 {[%emt 0:00:16]} 23. Nxh6+ {[%emt 0:00:08]} Kh7 {[%emt 0:01:33]} 24. Qh3 {[%emt 0:04:22]} Nf4 {[%emt 0:01:45]} 25. Qf5+ {[%emt 0:03:03]} Kxh6 {[%emt 0:00:25]} 26. Qxf4+ {[%emt 0:00:08]} Kg7 {[%emt 0:00:22]} 27. Qxf6+ {[%emt 0:00:18]} Kg8 {[%emt 0:01:44]} 28. R1d5 {[%emt 0:01:06]} Qxc4 {[%emt 0:00:24]} 29. Rg5+ {[%emt 0:00:12]} Kf8 {[%emt 0:00:09]} 30. Qh6+ {[%emt 0:00:09]} Ke7 {[%emt 0:00:11]} 31. Re5+ {[%emt 0:00:07]} 1-0

[Event "98th Caplin Hastings Masters 2024-25"]
[Site "Hastings"]
[Date "2025.01.03"]
[Round "9.19"]
[White "Gu In-Jung"]
[Black "Brown, Tom"]
[Result "0-1"]
[ECO "D25"]
[WhiteElo "1987"]
[BlackElo "1932"]
[Annotator "NA RC"]
[PlyCount "116"]
[EventDate "2024.12.23"]
[EventType "swiss"]
[EventCountry "ENG"]
[SourceTitle "playchess.com"]
[Source "ChessBase"]
[SourceQuality "1"]
[TimeControl "5400+30"]

1. d4 {[%emt 0:01:05]} d5 {[%emt 0:00:56]} 2. c4 {[%emt 0:01:00]} dxc4 {[%emt 0:00:07]} 3. Nf3 {[%emt 0:00:09]} Nf6 {[%emt 0:00:07]} 4. e3 {[%emt 0:00:21]} Bg4 {[%emt 0:00:25]} 5. Bxc4 {[%emt 0:00:10]} e6 {[%emt 0:00:08]} 6. Qb3 {[%emt 0:02:48]} Bxf3 {[%emt 0:00:19]} 7. gxf3 {[%emt 0:00:05]} Nbd7 {[%emt 0:00:27]} 8. Rg1 {[%emt 0:05:41]} Nb6 {[%emt 0:01:48]} 9. Be2 {[%emt 0:04:06]} Qd6 {[%emt 0:00:31]} 10. Rg3 {[%emt 0:06:26]} Qb4+ {[%emt 0:03:04]} 11. Qxb4 {[%emt 0:07:28]} Bxb4+ {[%emt 0:00:07]} 12. Bd2 {[%emt 0:00:03]} Bxd2+ {[%emt 0:03:30]} 13. Nxd2 {[%emt 0:00:10]} g6 {[%emt 0:04:30]} 14. Nb3 {[%emt 0:00:50]} O-O-O {[%emt 0:03:29]} 15. a4 {[%emt 0:05:49]} a6 {[%emt 0:03:20]} 16. Nc5 {[%emt 0:00:52]} Nbd7 {[%emt 0:02:11]} 17. Nd3 {[%emt 0:04:51]} Rhe8 {[%emt 0:02:18]} 18. f4 {[%emt 0:03:30]} Kb8 {[%emt 0:04:15]} 19. a5 {[%emt 0:01:21]} Ne4 {[%emt 0:03:37]} 20. Rg1 {[%emt 0:00:15]} f6 {[%emt 0:03:15]} 21. f3 {[%emt 0:08:22]} Nd6 {[%emt 0:01:16]} 22. b4 {[%emt 0:09:17]} e5 {[%emt 0:02:23]} 23. fxe5 {[%emt 0:00:43]} fxe5 {[%emt 0:00:05]} 24. dxe5 {[%emt 0:00:56]} Nxe5 {[%emt 0:00:27]} 25. Nc5 {[%emt 0:01:42]} Nd7 {[%emt 0:01:34]} 26. Kf2 {[%emt 0:01:29]} Nxc5 {[%emt 0:07:15]} 27. bxc5 {[%emt 0:00:05]} Nb5 {[%emt 0:02:26]} 28. Bxb5 {[%emt 0:02:30]} axb5 {[%emt 0:00:03]} 29. Rgd1 {[%emt 0:01:00]} Rxd1 {[%emt 0:03:47]} 30. Rxd1 {[%emt 0:00:04]} Re5 {[%emt 0:00:04]} 31. Rd8+ {[%emt 0:04:08]} Ka7 {[%emt 0:00:44]} 32. e4 {[%emt 0:00:02]} Rxc5 {[%emt 0:09:05]} 33. f4 {[%emt 0:01:04]} b4 {[%emt 0:14:30]} 34. Rd3 {[%emt 0:05:14]} Rxa5 {[%emt 0:00:41]} 35. e5 {[%emt 0:00:07]} Ra6 {[%emt 0:01:37]} 36. Re3 {[%emt 0:02:20]} Kb6 {[%emt 0:02:26]} 37. e6 {[%emt 0:03:41]} Ra8 {[%emt 0:00:15]} 38. Ke2 {[%emt 0:01:10]} c5 {[%emt 0:00:49]} 39. e7 {[%emt 0:00:46]} Re8 {[%emt 0:00:07]} 40. Kd3 {[%emt 0:00:05]} Kc6 {[%emt 0:04:02]} 41. Re5 {[%emt 0:01:30]} Kd6 {[%emt 0:01:17]} 42. Kc4 {[%emt 0:00:07]} b6 {[%emt 0:00:50]} 43. Rd5+ {[%emt 0:01:41]} Kxe7 {[%emt 0:00:07]} 44. Kb5 {[%emt 0:00:04]} Rc8 {[%emt 0:03:18]} 45. Rd1 {[%emt 0:01:11]} b3 {[%emt 0:00:46]} 46. Kc4 {[%emt 0:00:24]} Rd8 {[%emt 0:02:20]} 47. Re1+ {[%emt 0:00:08]} Kf6 {[%emt 0:00:09]} 48. Kxb3 {[%emt 0:00:07]} Rd4 {[%emt 0:00:13]} 49. Kc3 {[%emt 0:00:45]} Rxf4 {[%emt 0:00:13]} 50. Rb1 {[%emt 0:00:11]} Rb4 {[%emt 0:00:29]} 51. Rf1+ {[%emt 0:00:15]} Ke6 {[%emt 0:00:38]} 52. Rf8 {[%emt 0:00:13]} Kd6 {[%emt 0:00:22]} 53. Rf6+ {[%emt 0:01:01]} Kd5 {[%emt 0:00:21]} 54. Rf7 {[%emt 0:00:04]} Rh4 {[%emt 0:14:27]} 55. Rf2 {[%emt 0:00:56]} Rh3+ {[%emt 0:00:00]} 56. Kc2 {[%emt 0:00:04]} b5 {[%emt 0:00:00]} 57. Kc1 {[%emt 0:00:08]} c4 {[%emt 0:00:00]} 58. Re2 {[%emt 0:00:16]} b4 {[%emt 0:00:00]} 0-1

[Event "98th Caplin Hastings Masters 2024-25"]
[Site "Hastings"]
[Date "2025.01.03"]
[Round "9.20"]
[White "Jukes, Sam"]
[Black "Saunders, Aron"]
[Result "1/2-1/2"]
[ECO "B18"]
[WhiteElo "1911"]
[BlackElo "2106"]
[Annotator "NA RC"]
[PlyCount "72"]
[EventDate "2024.12.23"]
[EventType "swiss"]
[EventCountry "ENG"]
[SourceTitle "playchess.com"]
[Source "ChessBase"]
[SourceQuality "1"]
[TimeControl "5400+30"]

1. e4 {[%emt 0:00:02]} c6 {[%emt 0:00:05]} 2. d4 {[%emt 0:00:03]} d5 {[%emt 0:00:03]} 3. Nc3 {[%emt 0:00:06]} dxe4 {[%emt 0:00:04]} 4. Nxe4 {[%emt 0:00:08]} Bf5 {[%emt 0:00:04]} 5. Qf3 {[%emt 0:00:15]} e6 {[%emt 0:01:52]} 6. Ne2 {[%emt 0:00:08]} Nf6 {[%emt 0:03:43]} 7. Nxf6+ {[%emt 0:04:24]} Qxf6 {[%emt 0:01:33]} 8. c3 {[%emt 0:00:29]} Nd7 {[%emt 0:01:14]} 9. h4 {[%emt 0:03:46]} h6 {[%emt 0:04:56]} 10. g4 {[%emt 0:08:36]} Bh7 {[%emt 0:03:16]} 11. Qxf6 {[%emt 0:00:28]} Nxf6 {[%emt 0:00:14]} 12. f3 {[%emt 0:00:21]} Nd5 {[%emt 0:04:19]} 13. Nf4 {[%emt 0:02:06]} Bd6 {[%emt 0:01:26]} 14. Nxd5 {[%emt 0:01:51]} cxd5 {[%emt 0:02:58]} 15. Bb5+ {[%emt 0:01:32]} Ke7 {[%emt 0:00:06]} 16. Ke2 {[%emt 0:00:11]} f6 {[%emt 0:05:46]} 17. Bd3 {[%emt 0:05:43]} Bxd3+ {[%emt 0:01:37]} 18. Kxd3 {[%emt 0:00:05]} b5 {[%emt 0:00:06]} 19. Bd2 {[%emt 0:08:30]} h5 {[%emt 0:03:47]} 20. g5 {[%emt 0:06:09]} e5 {[%emt 0:04:55]} 21. Rhg1 {[%emt 0:09:14]} Kf7 {[%emt 0:01:43]} 22. gxf6 {[%emt 0:04:56]} gxf6 {[%emt 0:00:07]} 23. dxe5 {[%emt 0:01:04]} fxe5 {[%emt 0:00:29]} 24. Rg5 {[%emt 0:02:01]} Rag8 {[%emt 0:03:19]} 25. Rag1 {[%emt 0:00:28]} Be7 {[%emt 0:03:26]} 26. Rf5+ {[%emt 0:01:59]} Ke6 {[%emt 0:00:09]} 27. Rxg8 {[%emt 0:00:39]} Rxg8 {[%emt 0:00:04]} 28. Rxh5 {[%emt 0:00:10]} Rg3 {[%emt 0:00:23]} 29. Ke2 {[%emt 0:05:17]} Rg2+ {[%emt 0:00:12]} 30. Ke3 {[%emt 0:02:05]} Bc5+ {[%emt 0:05:07]} 31. Kd3 {[%emt 0:00:07]} Rf2 {[%emt 0:00:04]} 32. Rh6+ {[%emt 0:03:35]} Kf5 {[%emt 0:01:08]} 33. Rh5+ {[%emt 0:00:36]} Ke6 {[%emt 0:00:04]} 34. Rh6+ {[%emt 0:00:48]} Kd7 {[%emt 0:03:24]} 35. Rh7+ {[%emt 0:02:31]} Ke6 {[%emt 0:02:38]} 36. Rh6+ {[%emt 0:00:50]} Kf5 {[%emt 0:00:05]} 1/2-1/2

[Event "98th Caplin Hastings Masters 2024-25"]
[Site "Hastings"]
[Date "2025.01.03"]
[Round "9.21"]
[White "Mikalajunas, Kajus"]
[Black "Struck, Lasse"]
[Result "0-1"]
[ECO "A34"]
[WhiteElo "1941"]
[BlackElo "1983"]
[Annotator "NA RC"]
[PlyCount "86"]
[EventDate "2024.12.23"]
[EventType "swiss"]
[EventCountry "ENG"]
[SourceTitle "playchess.com"]
[Source "ChessBase"]
[SourceQuality "1"]
[TimeControl "5400+30"]

1. Nf3 {[%emt 0:00:03]} c5 {[%emt 0:00:10]} 2. c4 {[%emt 0:00:04]} Nf6 {[%emt 0:00:09]} 3. Nc3 {[%emt 0:00:08]} Nc6 {[%emt 0:00:13]} 4. g3 {[%emt 0:00:19]} d5 {[%emt 0:00:12]} 5. cxd5 {[%emt 0:01:08]} Nxd5 {[%emt 0:00:05]} 6. Bg2 {[%emt 0:00:43]} Nc7 {[%emt 0:00:08]} 7. d3 {[%emt 0:01:40]} e5 {[%emt 0:00:33]} 8. Nd2 {[%emt 0:01:43]} Bd7 {[%emt 0:03:22]} 9. O-O {[%emt 0:00:53]} Be7 {[%emt 0:00:33]} 10. Nc4 {[%emt 0:00:53]} f6 {[%emt 0:02:25]} 11. a4 {[%emt 0:05:42]} Ne6 {[%emt 0:05:58]} 12. a5 {[%emt 0:02:20]} O-O {[%emt 0:02:51]} 13. a6 {[%emt 0:02:22]} b6 {[%emt 0:02:02]} 14. Nd5 {[%emt 0:05:06]} Rc8 {[%emt 0:05:39]} 15. f4 {[%emt 0:04:22]} exf4 {[%emt 0:05:16]} 16. Nxf4 {[%emt 0:00:40]} Ncd4 {[%emt 0:03:46]} 17. e3 {[%emt 0:10:55]} Nxf4 {[%emt 0:01:07]} 18. gxf4 {[%emt 0:01:06]} Nc6 {[%emt 0:04:30]} 19. Bd5+ {[%emt 0:08:07]} Kh8 {[%emt 0:00:09]} 20. f5 {[%emt 0:02:00]} Nb4 {[%emt 0:04:27]} 21. Bb7 {[%emt 0:02:20]} Rc7 {[%emt 0:01:12]} 22. Rf4 {[%emt 0:10:25]} Bc6 {[%emt 0:03:30]} 23. Bxc6 {[%emt 0:02:59]} Rxc6 {[%emt 0:00:16]} 24. Rh4 {[%emt 0:06:10]} Nxd3 {[%emt 0:04:51]} 25. Qf3 {[%emt 0:03:48]} Ne5 {[%emt 0:05:34]} 26. Qh5 {[%emt 0:02:11]} h6 {[%emt 0:00:13]} 27. e4 {[%emt 0:00:45]} Nf7 {[%emt 0:02:03]} 28. Bf4 {[%emt 0:03:01]} Qd4+ {[%emt 0:05:25]} 29. Ne3 {[%emt 0:00:02]} Bd6 {[%emt 0:01:02]} 30. Qf3 {[%emt 0:02:25]} Bxf4 {[%emt 0:00:52]} 31. Qxf4 {[%emt 0:00:24]} Qxb2 {[%emt 0:02:54]} 32. Rd1 {[%emt 0:01:39]} Qe5 {[%emt 0:01:10]} 33. Rd7 {[%emt 0:01:12]} c4 {[%emt 0:00:32]} 34. Nd5 {[%emt 0:02:46]} c3 {[%emt 0:03:30]} 35. Qc1 {[%emt 0:04:09]} Qd4+ {[%emt 0:02:19]} 36. Kg2 {[%emt 0:01:09]} c2 {[%emt 0:01:33]} 37. Rf4 {[%emt 0:05:31]} Qd1 {[%emt 0:01:00]} 38. Rf1 {[%emt 0:00:40]} Qg4+ {[%emt 0:00:09]} 39. Kf2 {[%emt 0:00:13]} Ne5 {[%emt 0:00:18]} 40. Nf4 {[%emt 0:02:01]} Nxd7 {[%emt 0:01:02]} 41. Rg1 {[%emt 0:00:12]} Qh4+ {[%emt 0:00:22]} 42. Ke2 {[%emt 0:01:16]} Ne5 {[%emt 0:00:14]} 43. Qa3 {[%emt 0:01:38]} Re8 {[%emt 0:01:34]} 0-1

[Event "98th Caplin Hastings Masters 2024-25"]
[Site "Hastings"]
[Date "2025.01.03"]
[Round "9.22"]
[White "Ahn, Sungmin"]
[Black "Badacsonyi, Frankie"]
[Result "0-1"]
[ECO "C13"]
[WhiteElo "1926"]
[BlackElo "2218"]
[Annotator "RC"]
[PlyCount "90"]
[EventDate "2024.12.23"]
[EventType "swiss"]
[EventCountry "ENG"]
[SourceTitle "playchess.com"]
[Source "ChessBase"]
[SourceQuality "1"]
[TimeControl "5400+30"]

1. e4 {[%emt 0:00:01]} e6 {[%emt 0:00:12]} 2. d4 {[%emt 0:00:17]} d5 {[%emt 0:00:05]} 3. Nc3 {[%emt 0:04:39]} Nf6 {[%emt 0:00:27]} 4. Bg5 {[%emt 0:00:18]} dxe4 {[%emt 0:00:30]} 5. Nxe4 {[%emt 0:00:09]} Be7 {[%emt 0:00:05]} 6. Bxf6 {[%emt 0:01:48]} gxf6 {[%emt 0:00:25]} 7. Nf3 {[%emt 0:03:50]} f5 {[%emt 0:00:20]} 8. Nc3 {[%emt 0:00:50]} a6 {[%emt 0:00:20]} 9. Qd2 {[%emt 0:02:29]} Qd6 {[%emt 0:02:11]} 10. g4 {[%emt 0:40:02]} fxg4 {[%emt 0:04:42]} 11. Ne5 {[%emt 0:00:43]} Nc6 {[%emt 0:04:06]} 12. Qf4 {[%emt 0:05:50]} Nxe5 {[%emt 0:01:16]} 13. dxe5 {[%emt 0:00:02]} Qb4 {[%emt 0:00:18]} 14. Qd2 {[%emt 0:04:21]} Bd7 {[%emt 0:02:13]} 15. O-O-O {[%emt 0:04:41]} O-O-O {[%emt 0:00:41]} 16. Rg1 {[%emt 0:00:28]} h5 {[%emt 0:00:39]} 17. Bd3 {[%emt 0:05:59]} Bc6 {[%emt 0:01:50]} 18. Rde1 {[%emt 0:00:09]} Rhg8 {[%emt 0:01:23]} 19. Kb1 {[%emt 0:00:02]} Bg5 {[%emt 0:02:26]} 20. f4 {[%emt 0:01:24]} Qxf4 {[%emt 0:02:14]} 21. Qe2 {[%emt 0:00:20]} Bf3 {[%emt 0:05:32]} 22. Qf2 {[%emt 0:00:01]} Qd4 {[%emt 0:00:21]} 23. Qf1 {[%emt 0:01:53]} Bd2 {[%emt 0:00:38]} 24. Re4 {[%emt 0:00:06]} Bxe4 {[%emt 0:01:00]} 25. Nxe4 {[%emt 0:00:10]} Ba5 {[%emt 0:01:30]} 26. Rh1 {[%emt 0:00:48]} Qxe5 {[%emt 0:03:55]} 27. Qxf7 {[%emt 0:00:05]} h4 {[%emt 0:01:32]} 28. Qf2 {[%emt 0:23:05]} Rd4 {[%emt 0:02:20]} 29. Qf7 {[%emt 0:00:00]} Rgd8 {[%emt 0:02:05]} 30. Qg6 {[%emt 0:00:00]} Qf5 {[%emt 0:01:02]} 31. Qxf5 {[%emt 0:00:00]} exf5 {[%emt 0:00:05]} 32. Nc5 {[%emt 0:00:00]} R4d5 {[%emt 0:02:45]} 33. Ne6 {[%emt 0:00:00]} Re8 {[%emt 0:02:42]} 34. Ng7 {[%emt 0:00:00]} Rf8 {[%emt 0:00:32]} 35. Rf1 {[%emt 0:00:00]} f4 {[%emt 0:00:39]} 36. Ne6 {[%emt 0:00:00]} Rf6 {[%emt 0:00:12]} 37. b4 {[%emt 0:00:00]} Bb6 {[%emt 0:00:38]} 38. Bc4 {[%emt 0:00:00]} Re5 {[%emt 0:00:34]} 39. Nc5 {[%emt 0:04:45]} Bxc5 {[%emt 0:00:03]} 40. bxc5 {[%emt 0:00:03]} Rxc5 {[%emt 0:00:10]} 41. Bd3 {[%emt 0:00:09]} f3 {[%emt 0:00:06]} 42. Kc1 {[%emt 0:00:23]} g3 {[%emt 0:00:14]} 43. hxg3 {[%emt 0:00:05]} hxg3 {[%emt 0:00:01]} 44. Be4 {[%emt 0:00:09]} g2 {[%emt 0:00:12]} 45. Rd1 {[%emt 0:00:28]} Re5 {[%emt 0:00:05]} 0-1